[Event "Titled Tuesday Blitz June 27 Early 2023"]
[White "Aradhya, Garg"]
[Black "Henriquez Villagra, Cristobal"]
[WhiteFideId "25006746"]
[BlackFideId "3409350"]
[WhiteElo "2746"]
[BlackElo "2902"]
[Result "1-0"]
[Round "8"]
[TimeControl "180+2"]
[Date "2023.06.27"]
[WhiteClock "0:00:16"]
[BlackClock "0:00:01"]
[Board "15"]

1. d4 {[%clk 0:03:00]}  d6 {[%clk 0:02:56]} 2. Nf3 {[%clk 0:02:58]}  Nf6 {[%clk 0:02:56]} 3. c4 {[%clk 0:02:58]}  Nbd7 {[%clk 0:02:49]} 4. Nc3 {[%clk 0:02:58]}  e5 {[%clk 0:02:49]} 5. g3 {[%clk 0:02:58]}  Be7 {[%clk 0:02:50]} 6. Bg2 {[%clk 0:02:57]}  O-O {[%clk 0:02:50]} 7. O-O {[%clk 0:02:58]}  c6 {[%clk 0:02:51]} 8. e4 {[%clk 0:02:55]}  Qc7 {[%clk 0:02:50]} 9. Be3 {[%clk 0:02:53]}  b6 {[%clk 0:02:48]} 10. h3 {[%clk 0:02:53]}  Bb7 {[%clk 0:02:48]} 11. Rc1 {[%clk 0:02:52]}  Rfe8 {[%clk 0:02:48]} 12. Qc2 {[%clk 0:02:50]}  Bf8 {[%clk 0:02:48]} 13. Rfd1 {[%clk 0:02:50]}  Rac8 {[%clk 0:02:48]} 14. d5 {[%clk 0:02:44]}  cxd5 {[%clk 0:02:43]} 15. cxd5 {[%clk 0:02:44]}  Nc5 {[%clk 0:02:40]} 16. Nd2 {[%clk 0:02:33]}  Ba6 {[%clk 0:02:39]} 17. Bf1 {[%clk 0:02:22]}  Bxf1 {[%clk 0:02:38]} 18. Kxf1 {[%clk 0:02:22]}  Qb7 {[%clk 0:02:36]} 19. Kg2 {[%clk 0:02:16]}  b5 {[%clk 0:02:36]} 20. b4 {[%clk 0:02:15]}  Na4 {[%clk 0:02:30]} 21. Qb3 {[%clk 0:02:15]}  Nxc3 {[%clk 0:02:17]} 22. Rxc3 {[%clk 0:02:15]}  Rxc3 {[%clk 0:02:17]} 23. Qxc3 {[%clk 0:02:15]}  Rc8 {[%clk 0:02:18]} 24. Qd3 {[%clk 0:02:16]}  Be7 {[%clk 0:02:10]} 25. Nb3 {[%clk 0:02:14]}  Bd8 {[%clk 0:02:10]} 26. Bg5 {[%clk 0:02:03]}  Qa6 {[%clk 0:01:28]} 27. Bxf6 {[%clk 0:01:53]}  Bxf6 {[%clk 0:01:27]} 28. Na5 {[%clk 0:01:53]}  Bd8 {[%clk 0:01:20]} 29. Nc6 {[%clk 0:01:45]}  Qxa2 {[%clk 0:01:17]} 30. Nxd8 {[%clk 0:01:41]}  Rxd8 {[%clk 0:01:15]} 31. Qxb5 {[%clk 0:01:41]}  Qc2 {[%clk 0:01:10]} 32. Rd3 {[%clk 0:01:37]}  Qe2 {[%clk 0:01:03]} 33. Qc4 {[%clk 0:01:32]}  g6 {[%clk 0:01:00]} 34. Rc3 {[%clk 0:01:31]}  Qb2 {[%clk 0:00:50]} 35. b5 {[%clk 0:01:23]}  Rb8 {[%clk 0:00:48]} 36. Rb3 {[%clk 0:01:23]}  Qa2 {[%clk 0:00:33]} 37. Qc7 {[%clk 0:01:23]}  Rf8 {[%clk 0:00:31]} 38. Re3 {[%clk 0:01:16]}  Qa4 {[%clk 0:00:28]} 39. Qxd6 {[%clk 0:01:13]}  Qxb5 {[%clk 0:00:29]} 40. Qxe5 {[%clk 0:01:14]}  a5 {[%clk 0:00:29]} 41. Qd4 {[%clk 0:01:13]}  Rc8 {[%clk 0:00:25]} 42. d6 {[%clk 0:01:08]}  a4 {[%clk 0:00:24]} 43. Rc3 {[%clk 0:00:58]}  Rd8 {[%clk 0:00:23]} 44. Qf6 {[%clk 0:00:52]}  Qe8 {[%clk 0:00:19]} 45. Kh2 {[%clk 0:00:39]}  Ra8 {[%clk 0:00:19]} 46. Qe7 {[%clk 0:00:17]}  Qb5 {[%clk 0:00:06]} 47. d7 {[%clk 0:00:16]}  Qb6 {[%clk 0:00:05]} 48. Rc8+ {[%clk 0:00:16]}  Kg7 {[%clk 0:00:06]} 49. Qf8+ {[%clk 0:00:16]}  Kf6 {[%clk 0:00:01]} 50. Kg2 {[%clk 0:00:16]} 1-0


[Site "https://www.chess.com"]

[Event "Titled Tuesday Blitz June 27 Early 2023"]
[White "Ibarra Jerez, Jose Carlos"]
[Black "Morefield, Jason"]
[WhiteFideId "2226332"]
[BlackFideId "30920825"]
[WhiteElo "2887"]
[BlackElo "2764"]
[Result "1-0"]
[Round "8"]
[TimeControl "180+2"]
[Date "2023.06.27"]
[WhiteClock "0:00:03"]
[BlackClock "0:00:07"]
[Board "16"]

1. e4 {[%clk 0:02:55]}  e5 {[%clk 0:02:58]} 2. Nf3 {[%clk 0:02:55]}  Nc6 {[%clk 0:02:59]} 3. Bb5 {[%clk 0:02:55]}  Nf6 {[%clk 0:02:59]} 4. O-O {[%clk 0:02:54]}  Nxe4 {[%clk 0:02:59]} 5. d4 {[%clk 0:02:55]}  Nd6 {[%clk 0:03:00]} 6. dxe5 {[%clk 0:02:55]}  Nxb5 {[%clk 0:02:59]} 7. a4 {[%clk 0:02:56]}  Nbd4 {[%clk 0:03:00]} 8. Nxd4 {[%clk 0:02:56]}  d5 {[%clk 0:03:00]} 9. c3 {[%clk 0:02:47]}  Nxd4 {[%clk 0:02:49]} 10. cxd4 {[%clk 0:02:42]}  Bf5 {[%clk 0:02:49]} 11. Qb3 {[%clk 0:02:40]}  b6 {[%clk 0:02:40]} 12. Nc3 {[%clk 0:02:39]}  c6 {[%clk 0:02:40]} 13. Ne2 {[%clk 0:02:34]}  Be7 {[%clk 0:02:12]} 14. Ng3 {[%clk 0:02:29]}  Qd7 {[%clk 0:02:08]} 15. a5 {[%clk 0:02:19]}  Rb8 {[%clk 0:02:01]} 16. axb6 {[%clk 0:02:17]}  axb6 {[%clk 0:02:02]} 17. Ra6 {[%clk 0:02:13]}  Bd8 {[%clk 0:01:59]} 18. Bf4 {[%clk 0:01:29]}  Be6 {[%clk 0:01:45]} 19. Nh5 {[%clk 0:01:27]}  O-O {[%clk 0:01:05]} 20. Qg3 {[%clk 0:01:25]}  g6 {[%clk 0:00:53]} 21. Bg5 {[%clk 0:00:50]}  Bxg5 {[%clk 0:00:44]} 22. Qxg5 {[%clk 0:00:49]}  Qd8 {[%clk 0:00:44]} 23. Nf6+ {[%clk 0:00:45]}  Kg7 {[%clk 0:00:44]} 24. Ra7 {[%clk 0:00:36]}  h6 {[%clk 0:00:37]} 25. Qg3 {[%clk 0:00:32]}  Ra8 {[%clk 0:00:26]} 26. Rfa1 {[%clk 0:00:33]}  Rxa7 {[%clk 0:00:26]} 27. Rxa7 {[%clk 0:00:34]}  c5 {[%clk 0:00:21]} 28. h4 {[%clk 0:00:29]}  cxd4 {[%clk 0:00:17]} 29. Qd3 {[%clk 0:00:29]}  Qb8 {[%clk 0:00:15]} 30. Re7 {[%clk 0:00:11]}  Qxe5 {[%clk 0:00:13]} 31. Ne8+ {[%clk 0:00:10]}  Kg8 {[%clk 0:00:11]} 32. Qf3 {[%clk 0:00:08]}  Qe1+ {[%clk 0:00:07]} 33. Kh2 {[%clk 0:00:08]}  Qe5+ {[%clk 0:00:06]} 34. g3 {[%clk 0:00:09]}  Qf5 {[%clk 0:00:04]} 35. Qe2 {[%clk 0:00:02]}  Kh7 {[%clk 0:00:02]} 36. Kg1 {[%clk 0:00:03]}  d3 {[%clk 0:00:03]} 37. Qe3 {[%clk 0:00:02]}  Kh8 {[%clk 0:00:02]} 38. Nd6 {[%clk 0:00:02]}  Qf6 {[%clk 0:00:01]} 39. Ra7 {[%clk 0:00:02]}  Qg7 {[%clk 0:00:01]} 40. Qxd3 {[%clk 0:00:01]}  Kh7 {[%clk 0:00:02]} 41. Qe3 {[%clk 0:00:01]}  Rd8 {[%clk 0:00:02]} 42. Qxb6 {[%clk 0:00:02]}  Rd7 {[%clk 0:00:02]} 43. Ra8 {[%clk 0:00:01]}  Qf6 {[%clk 0:00:02]} 44. Ne8 {[%clk 0:00:02]}  Qg7 {[%clk 0:00:02]} 45. Qb8 {[%clk 0:00:02]}  Qf8 {[%clk 0:00:02]} 46. Nf6+ {[%clk 0:00:02]}  Kg7 {[%clk 0:00:03]} 47. Qxf8+ {[%clk 0:00:02]}  Kxf6 {[%clk 0:00:04]} 48. Qh8+ {[%clk 0:00:03]}  Kf5 {[%clk 0:00:05]} 49. Qd4 {[%clk 0:00:04]}  g5 {[%clk 0:00:04]} 50. hxg5 {[%clk 0:00:04]}  hxg5 {[%clk 0:00:05]} 51. g4+ {[%clk 0:00:04]}  Kg6 {[%clk 0:00:06]} 52. Rg8+ {[%clk 0:00:04]}  Kh7 {[%clk 0:00:07]} 53. Qg7# {[%clk 0:00:03]} 1-0


[Site "https://www.chess.com"]

[Event "Titled Tuesday Blitz June 27 Early 2023"]
[White "Galchenko, Matvey"]
[Black "De Silva, L M S T"]
[WhiteFideId "24175480"]
[BlackFideId "9953698"]
[WhiteElo "2874"]
[BlackElo "2743"]
[Result "1-0"]
[Round "8"]
[TimeControl "180+2"]
[Date "2023.06.27"]
[WhiteClock "0:00:34"]
[BlackClock "0:00:32"]
[Board "17"]

1. d4 {[%clk 0:03:00]}  Nf6 {[%clk 0:03:00]} 2. c4 {[%clk 0:02:56]}  e6 {[%clk 0:03:00]} 3. Nc3 {[%clk 0:02:56]}  Bb4 {[%clk 0:03:00]} 4. e3 {[%clk 0:02:57]}  O-O {[%clk 0:03:00]} 5. Bd3 {[%clk 0:02:57]}  d5 {[%clk 0:02:59]} 6. a3 {[%clk 0:02:57]}  Be7 {[%clk 0:02:57]} 7. Nf3 {[%clk 0:02:48]}  dxc4 {[%clk 0:02:55]} 8. Bxc4 {[%clk 0:02:47]}  c5 {[%clk 0:02:56]} 9. O-O {[%clk 0:02:47]}  Nc6 {[%clk 0:02:55]} 10. dxc5 {[%clk 0:02:21]}  Qa5 {[%clk 0:02:51]} 11. Qe2 {[%clk 0:02:17]}  Qxc5 {[%clk 0:02:48]} 12. b4 {[%clk 0:02:07]}  Qh5 {[%clk 0:02:47]} 13. Bb2 {[%clk 0:02:00]}  e5 {[%clk 0:02:46]} 14. h3 {[%clk 0:02:00]}  e4 {[%clk 0:02:32]} 15. Nd2 {[%clk 0:01:56]}  Qg6 {[%clk 0:02:30]} 16. Nd5 {[%clk 0:01:43]}  Nxd5 {[%clk 0:01:29]} 17. Bxd5 {[%clk 0:01:43]}  Bxh3 {[%clk 0:01:29]} 18. Bxe4 {[%clk 0:01:44]}  f5 {[%clk 0:01:30]} 19. Bd5+ {[%clk 0:01:31]}  Kh8 {[%clk 0:01:30]} 20. Nc4 {[%clk 0:01:16]}  Rad8 {[%clk 0:01:25]} 21. Bf3 {[%clk 0:01:16]}  b5 {[%clk 0:01:16]} 22. Ne5 {[%clk 0:01:04]}  Nxe5 {[%clk 0:01:17]} 23. Bxe5 {[%clk 0:01:05]}  Bf6 {[%clk 0:01:08]} 24. Bxf6 {[%clk 0:00:51]}  Rxf6 {[%clk 0:01:09]} 25. Rad1 {[%clk 0:00:49]}  Rdf8 {[%clk 0:01:07]} 26. Rd4 {[%clk 0:00:44]}  f4 {[%clk 0:01:04]} 27. Rxf4 {[%clk 0:00:38]}  Rxf4 {[%clk 0:01:05]} 28. exf4 {[%clk 0:00:39]}  Rxf4 {[%clk 0:01:03]} 29. Qxb5 {[%clk 0:00:35]}  h6 {[%clk 0:00:32]} 30. Qb8+ {[%clk 0:00:34]} 1-0


[Site "https://www.chess.com"]

[Event "Titled Tuesday Blitz June 27 Early 2023"]
[White "Maksimovic, Bojan"]
[Black "Nakamura, Hikaru"]
[WhiteFideId "14408120"]
[BlackFideId "2016192"]
[WhiteElo "2781"]
[BlackElo "3229"]
[Result "1-0"]
[Round "8"]
[TimeControl "180+2"]
[Date "2023.06.27"]
[WhiteClock "0:01:14"]
[BlackClock "0:00:20"]
[Board "19"]

1. Nf3 {[%clk 0:03:00]}  g6 {[%clk 0:02:50]} 2. g3 {[%clk 0:03:01]}  Bg7 {[%clk 0:02:49]} 3. d3 {[%clk 0:03:00]}  e5 {[%clk 0:02:48]} 4. Bg2 {[%clk 0:03:00]}  d5 {[%clk 0:02:49]} 5. Nbd2 {[%clk 0:02:59]}  Ne7 {[%clk 0:02:48]} 6. O-O {[%clk 0:02:59]}  O-O {[%clk 0:02:47]} 7. e4 {[%clk 0:02:59]}  Nbc6 {[%clk 0:02:47]} 8. c3 {[%clk 0:03:00]}  a5 {[%clk 0:02:46]} 9. b3 {[%clk 0:02:59]}  dxe4 {[%clk 0:02:42]} 10. dxe4 {[%clk 0:03:00]}  Qd3 {[%clk 0:02:42]} 11. Bb2 {[%clk 0:02:59]}  Bg4 {[%clk 0:02:41]} 12. Re1 {[%clk 0:02:48]}  Rfd8 {[%clk 0:02:35]} 13. h3 {[%clk 0:02:48]}  Be6 {[%clk 0:02:32]} 14. Bf1 {[%clk 0:02:40]}  Qd7 {[%clk 0:02:31]} 15. Kh2 {[%clk 0:02:40]}  a4 {[%clk 0:02:30]} 16. Qc2 {[%clk 0:02:34]}  h6 {[%clk 0:02:10]} 17. Rad1 {[%clk 0:02:31]}  Qe8 {[%clk 0:02:09]} 18. Bc4 {[%clk 0:02:23]}  Nc8 {[%clk 0:02:05]} 19. Bxe6 {[%clk 0:02:14]}  Qxe6 {[%clk 0:02:06]} 20. Nc4 {[%clk 0:02:14]}  Nd6 {[%clk 0:01:55]} 21. Nxd6 {[%clk 0:02:14]}  cxd6 {[%clk 0:01:55]} 22. Rd5 {[%clk 0:02:07]}  Ne7 {[%clk 0:01:54]} 23. Rb5 {[%clk 0:02:07]}  axb3 {[%clk 0:01:43]} 24. axb3 {[%clk 0:02:07]}  Qd7 {[%clk 0:01:39]} 25. c4 {[%clk 0:02:06]}  Ra2 {[%clk 0:01:39]} 26. Ra1 {[%clk 0:02:05]}  Rxa1 {[%clk 0:01:36]} 27. Bxa1 {[%clk 0:02:06]}  f5 {[%clk 0:01:36]} 28. exf5 {[%clk 0:02:04]}  gxf5 {[%clk 0:01:12]} 29. Bc3 {[%clk 0:02:01]}  Qc6 {[%clk 0:01:10]} 30. Qd1 {[%clk 0:01:58]}  Rf8 {[%clk 0:01:07]} 31. Bb4 {[%clk 0:01:55]}  f4 {[%clk 0:00:38]} 32. g4 {[%clk 0:01:48]}  Nc8 {[%clk 0:00:35]} 33. Rd5 {[%clk 0:01:46]}  Rf6 {[%clk 0:00:34]} 34. Nd2 {[%clk 0:01:45]}  Qb6 {[%clk 0:00:34]} 35. Ne4 {[%clk 0:01:30]}  Qxb4 {[%clk 0:00:34]} 36. Rb5 {[%clk 0:01:30]}  Qa3 {[%clk 0:00:33]} 37. Qd5+ {[%clk 0:01:21]}  Kf8 {[%clk 0:00:24]} 38. Nxf6 {[%clk 0:01:15]}  Bxf6 {[%clk 0:00:24]} 39. Qe6 {[%clk 0:01:15]}  Qa7 {[%clk 0:00:20]} 40. Qxc8+ {[%clk 0:01:14]} 1-0


[Site "https://www.chess.com"]

[Event "Titled Tuesday Blitz June 27 Early 2023"]
[White "Bryakin, Mikhail"]
[Black "Nguyen, Ngoc Truong Son"]
[WhiteFideId "4165314"]
[BlackFideId "12401110"]
[WhiteElo "2769"]
[BlackElo "2951"]
[Result "0-1"]
[Round "8"]
[TimeControl "180+2"]
[Date "2023.06.27"]
[WhiteClock "0:00:04"]
[BlackClock "0:00:04"]
[Board "21"]

1. Nf3 {[%clk 0:02:59]}  Nf6 {[%clk 0:01:57]} 2. d4 {[%clk 0:01:58]}  g6 {[%clk 0:01:55]} 3. c4 {[%clk 0:01:57]}  Bg7 {[%clk 0:01:55]} 4. g3 {[%clk 0:01:57]}  O-O {[%clk 0:01:55]} 5. Nc3 {[%clk 0:01:57]}  d6 {[%clk 0:01:56]} 6. Bg2 {[%clk 0:01:57]}  Nbd7 {[%clk 0:01:56]} 7. O-O {[%clk 0:01:57]}  e5 {[%clk 0:01:57]} 8. h3 {[%clk 0:01:57]}  h6 {[%clk 0:01:53]} 9. e4 {[%clk 0:01:55]}  c6 {[%clk 0:01:51]} 10. d5 {[%clk 0:01:54]}  Nc5 {[%clk 0:01:50]} 11. Ne1 {[%clk 0:01:53]}  Bd7 {[%clk 0:01:49]} 12. Nd3 {[%clk 0:01:53]}  Nxd3 {[%clk 0:01:47]} 13. Qxd3 {[%clk 0:01:54]}  Ne8 {[%clk 0:01:41]} 14. Be3 {[%clk 0:01:50]}  f5 {[%clk 0:01:40]} 15. exf5 {[%clk 0:01:49]}  gxf5 {[%clk 0:01:40]} 16. f4 {[%clk 0:01:49]}  e4 {[%clk 0:01:39]} 17. Qd2 {[%clk 0:01:49]}  c5 {[%clk 0:01:36]} 18. Kh2 {[%clk 0:01:44]}  h5 {[%clk 0:01:34]} 19. Rg1 {[%clk 0:01:18]}  Nf6 {[%clk 0:01:33]} 20. Bf1 {[%clk 0:01:16]}  Qe7 {[%clk 0:01:29]} 21. Be2 {[%clk 0:01:16]}  Kf7 {[%clk 0:01:26]} 22. Rab1 {[%clk 0:01:14]}  Rh8 {[%clk 0:01:17]} 23. a3 {[%clk 0:01:07]}  b6 {[%clk 0:01:08]} 24. b4 {[%clk 0:01:06]}  Kg6 {[%clk 0:00:58]} 25. bxc5 {[%clk 0:01:03]}  dxc5 {[%clk 0:00:57]} 26. Nd1 {[%clk 0:01:01]}  Ne8 {[%clk 0:00:41]} 27. Nf2 {[%clk 0:00:55]}  Nd6 {[%clk 0:00:41]} 28. Qc2 {[%clk 0:00:45]}  Bd4 {[%clk 0:00:39]} 29. Qd2 {[%clk 0:00:40]}  Qf6 {[%clk 0:00:38]} 30. Rbd1 {[%clk 0:00:37]}  Ba4 {[%clk 0:00:34]} 31. Rc1 {[%clk 0:00:30]}  Bxe3 {[%clk 0:00:33]} 32. Qxe3 {[%clk 0:00:31]}  Qd4 {[%clk 0:00:34]} 33. Rc3 {[%clk 0:00:26]}  a6 {[%clk 0:00:28]} 34. Rgc1 {[%clk 0:00:26]}  Rad8 {[%clk 0:00:21]} 35. Bd1 {[%clk 0:00:21]}  Bxd1 {[%clk 0:00:18]} 36. Nxd1 {[%clk 0:00:22]}  Kf6 {[%clk 0:00:14]} 37. R3c2 {[%clk 0:00:17]}  b5 {[%clk 0:00:13]} 38. Rd2 {[%clk 0:00:15]}  Qxe3 {[%clk 0:00:12]} 39. Nxe3 {[%clk 0:00:16]}  Rc8 {[%clk 0:00:11]} 40. Rdc2 {[%clk 0:00:15]}  b4 {[%clk 0:00:10]} 41. axb4 {[%clk 0:00:14]}  cxb4 {[%clk 0:00:11]} 42. c5 {[%clk 0:00:15]}  Nb5 {[%clk 0:00:10]} 43. Ra2 {[%clk 0:00:15]}  Ra8 {[%clk 0:00:09]} 44. Ra5 {[%clk 0:00:14]}  Rhc8 {[%clk 0:00:09]} 45. c6 {[%clk 0:00:15]}  Nc3 {[%clk 0:00:08]} 46. Nc4 {[%clk 0:00:11]}  Rab8 {[%clk 0:00:07]} 47. Rxa6 {[%clk 0:00:11]}  Kg7 {[%clk 0:00:06]} 48. Ne3 {[%clk 0:00:10]}  b3 {[%clk 0:00:04]} 49. Nxf5+ {[%clk 0:00:09]}  Kh8 {[%clk 0:00:04]} 50. Ra7 {[%clk 0:00:08]}  b2 {[%clk 0:00:04]} 51. Re1 {[%clk 0:00:08]}  b1=Q {[%clk 0:00:04]} 52. Rxb1 {[%clk 0:00:09]}  Rxb1 {[%clk 0:00:05]} 53. g4 {[%clk 0:00:07]}  Rb2+ {[%clk 0:00:04]} 54. Kg3 {[%clk 0:00:08]}  Nxd5 {[%clk 0:00:05]} 55. g5 {[%clk 0:00:05]}  Rb3+ {[%clk 0:00:05]} 56. Kh4 {[%clk 0:00:05]}  Nxf4 {[%clk 0:00:05]} 57. Ng3 {[%clk 0:00:03]}  Rxc6 {[%clk 0:00:05]} 58. Ra8+ {[%clk 0:00:02]}  Kh7 {[%clk 0:00:05]} 59. Ra7+ {[%clk 0:00:03]}  Kg6 {[%clk 0:00:04]} 60. Ra8 {[%clk 0:00:04]}  Ng2# {[%clk 0:00:04]} 0-1


[Site "https://www.chess.com"]

[Event "Titled Tuesday Blitz June 27 Early 2023"]
[White "Kravtsiv, Martyn"]
[Black "Postny, Evgeny"]
[WhiteFideId "14113147"]
[BlackFideId "2804344"]
[WhiteElo "2844"]
[BlackElo "2731"]
[Result "0-1"]
[Round "8"]
[TimeControl "180+2"]
[Date "2023.06.27"]
[WhiteClock "0:01:21"]
[BlackClock "0:00:16"]
[Board "24"]

1. e4 {[%clk 0:02:58]}  e5 {[%clk 0:02:54]} 2. Nf3 {[%clk 0:02:56]}  Nc6 {[%clk 0:02:53]} 3. Nc3 {[%clk 0:02:55]}  Nf6 {[%clk 0:02:53]} 4. a4 {[%clk 0:02:55]}  g6 {[%clk 0:02:49]} 5. Bc4 {[%clk 0:02:53]}  Bg7 {[%clk 0:02:48]} 6. d3 {[%clk 0:02:53]}  d6 {[%clk 0:02:47]} 7. Be3 {[%clk 0:02:49]}  O-O {[%clk 0:02:46]} 8. h3 {[%clk 0:02:49]}  Be6 {[%clk 0:02:43]} 9. Bxe6 {[%clk 0:02:49]}  fxe6 {[%clk 0:02:44]} 10. Ne2 {[%clk 0:02:49]}  d5 {[%clk 0:02:39]} 11. Ng3 {[%clk 0:02:48]}  Qd6 {[%clk 0:02:35]} 12. O-O {[%clk 0:02:44]}  Rad8 {[%clk 0:02:27]} 13. Qe2 {[%clk 0:02:43]}  h6 {[%clk 0:02:14]} 14. c3 {[%clk 0:02:27]}  Kh7 {[%clk 0:02:08]} 15. Rfd1 {[%clk 0:02:24]}  d4 {[%clk 0:02:04]} 16. cxd4 {[%clk 0:02:23]}  exd4 {[%clk 0:01:57]} 17. Bxh6 {[%clk 0:02:19]}  Bxh6 {[%clk 0:01:54]} 18. e5 {[%clk 0:02:19]}  Nxe5 {[%clk 0:01:45]} 19. Nxe5 {[%clk 0:02:17]}  Nd5 {[%clk 0:01:38]} 20. Qe4 {[%clk 0:02:13]}  Nf4 {[%clk 0:01:15]} 21. Re1 {[%clk 0:02:11]}  Qd5 {[%clk 0:01:11]} 22. Rad1 {[%clk 0:02:08]}  Qxe4 {[%clk 0:01:07]} 23. Rxe4 {[%clk 0:02:05]}  Rd5 {[%clk 0:01:05]} 24. Nf3 {[%clk 0:02:04]}  Nxh3+ {[%clk 0:01:02]} 25. gxh3 {[%clk 0:02:03]}  Rxf3 {[%clk 0:01:02]} 26. Rxe6 {[%clk 0:02:03]}  Rd7 {[%clk 0:00:47]} 27. Ne4 {[%clk 0:02:01]}  Kg7 {[%clk 0:00:42]} 28. Kg2 {[%clk 0:02:00]}  Rf5 {[%clk 0:00:41]} 29. b4 {[%clk 0:01:58]}  Kf7 {[%clk 0:00:39]} 30. Re1 {[%clk 0:01:47]}  Kxe6 {[%clk 0:00:39]} 31. Nc5+ {[%clk 0:01:47]}  Kd6 {[%clk 0:00:36]} 32. Re6+ {[%clk 0:01:35]}  Kd5 {[%clk 0:00:34]} 33. Re8 {[%clk 0:01:35]}  Rd6 {[%clk 0:00:24]} 34. Nxb7 {[%clk 0:01:33]}  Rdf6 {[%clk 0:00:23]} 35. Re2 {[%clk 0:01:31]}  Kc6 {[%clk 0:00:21]} 36. Nc5 {[%clk 0:01:28]}  Rxc5 {[%clk 0:00:20]} 37. bxc5 {[%clk 0:01:28]}  Kxc5 {[%clk 0:00:21]} 38. Re5+ {[%clk 0:01:28]}  Kb4 {[%clk 0:00:20]} 39. Re7 {[%clk 0:01:21]}  Bf4 {[%clk 0:00:16]} 0-1


[Site "https://www.chess.com"]

[Event "Titled Tuesday Blitz June 27 Early 2023"]
[White "Matinian, Nikita"]
[Black "Grigoriants, Sergey"]
[WhiteFideId "24129100"]
[BlackFideId "4130804"]
[WhiteElo "2726"]
[BlackElo "2839"]
[Result "1-0"]
[Round "8"]
[TimeControl "180+2"]
[Date "2023.06.27"]
[WhiteClock "0:00:10"]
[BlackClock "0:00:00"]
[Board "26"]

1. e4 {[%clk 0:03:00]}  e5 {[%clk 0:02:52]} 2. Nf3 {[%clk 0:03:00]}  Nc6 {[%clk 0:02:52]} 3. Bb5 {[%clk 0:03:01]}  a6 {[%clk 0:02:52]} 4. Ba4 {[%clk 0:03:02]}  Nf6 {[%clk 0:02:53]} 5. O-O {[%clk 0:03:02]}  b5 {[%clk 0:02:53]} 6. Bb3 {[%clk 0:03:02]}  Bc5 {[%clk 0:02:53]} 7. c3 {[%clk 0:03:01]}  d6 {[%clk 0:02:52]} 8. d4 {[%clk 0:03:01]}  Bb6 {[%clk 0:02:52]} 9. Be3 {[%clk 0:03:01]}  O-O {[%clk 0:02:51]} 10. Nbd2 {[%clk 0:02:59]}  h6 {[%clk 0:02:51]} 11. h3 {[%clk 0:02:59]}  Bb7 {[%clk 0:02:50]} 12. d5 {[%clk 0:02:52]}  Ne7 {[%clk 0:02:48]} 13. Bxb6 {[%clk 0:02:51]}  cxb6 {[%clk 0:02:49]} 14. Re1 {[%clk 0:02:46]}  Bc8 {[%clk 0:02:46]} 15. Bc2 {[%clk 0:02:44]}  Bd7 {[%clk 0:02:46]} 16. Bd3 {[%clk 0:02:45]}  Ng6 {[%clk 0:02:24]} 17. b4 {[%clk 0:02:39]}  Rc8 {[%clk 0:02:05]} 18. Rc1 {[%clk 0:02:38]}  Nf4 {[%clk 0:02:00]} 19. Bf1 {[%clk 0:02:38]}  Nh7 {[%clk 0:02:01]} 20. c4 {[%clk 0:02:33]}  f5 {[%clk 0:01:52]} 21. c5 {[%clk 0:02:25]}  bxc5 {[%clk 0:01:46]} 22. bxc5 {[%clk 0:02:25]}  Rxc5 {[%clk 0:01:38]} 23. Rxc5 {[%clk 0:02:24]}  dxc5 {[%clk 0:01:39]} 24. Nxe5 {[%clk 0:02:24]}  fxe4 {[%clk 0:01:26]} 25. Nxe4 {[%clk 0:02:18]}  c4 {[%clk 0:01:24]} 26. Nc5 {[%clk 0:01:36]}  Bf5 {[%clk 0:01:00]} 27. d6 {[%clk 0:01:26]}  Qb6 {[%clk 0:00:53]} 28. Ncd7 {[%clk 0:01:05]}  Bxd7 {[%clk 0:00:43]} 29. Nxd7 {[%clk 0:01:06]}  Nxh3+ {[%clk 0:00:37]} 30. gxh3 {[%clk 0:01:07]}  Qxf2+ {[%clk 0:00:37]} 31. Kh1 {[%clk 0:01:08]}  Ng5 {[%clk 0:00:30]} 32. Qe2 {[%clk 0:00:25]}  Qxe2 {[%clk 0:00:04]} 33. Bxe2 {[%clk 0:00:26]}  Rd8 {[%clk 0:00:05]} 34. Bg4 {[%clk 0:00:24]}  h5 {[%clk 0:00:03]} 35. Bf5 {[%clk 0:00:24]}  g6 {[%clk 0:00:03]} 36. Bxg6 {[%clk 0:00:11]}  Rxd7 {[%clk 0:00:03]} 37. Re8+ {[%clk 0:00:11]}  Kg7 {[%clk 0:00:03]} 38. Re7+ {[%clk 0:00:12]}  Kxg6 {[%clk 0:00:02]} 39. Rxd7 {[%clk 0:00:12]}  Ne4 {[%clk 0:00:00]} 40. Re7 {[%clk 0:00:10]} 1-0


[Site "https://www.chess.com"]

[Event "Titled Tuesday Blitz June 27 Early 2023"]
[White "Harsh Suresh"]
[Black "Preotu, Razvan"]
[WhiteFideId "45018464"]
[BlackFideId "2613280"]
[WhiteElo "2818"]
[BlackElo "2720"]
[Result "1-0"]
[Round "8"]
[TimeControl "180+2"]
[Date "2023.06.27"]
[WhiteClock "0:00:46"]
[BlackClock "0:00:03"]
[Board "27"]

1. e4 {[%clk 0:03:00]}  c5 {[%clk 0:02:56]} 2. Nf3 {[%clk 0:02:56]}  d6 {[%clk 0:02:56]} 3. Bb5+ {[%clk 0:02:52]}  Nd7 {[%clk 0:02:49]} 4. c4 {[%clk 0:02:52]}  Nf6 {[%clk 0:02:47]} 5. Nc3 {[%clk 0:02:51]}  e6 {[%clk 0:02:26]} 6. O-O {[%clk 0:02:49]}  Be7 {[%clk 0:02:26]} 7. d3 {[%clk 0:02:43]}  O-O {[%clk 0:02:27]} 8. Ba4 {[%clk 0:02:44]}  Ne5 {[%clk 0:02:19]} 9. Ne1 {[%clk 0:02:40]}  Nc6 {[%clk 0:01:51]} 10. Be3 {[%clk 0:02:32]}  Bd7 {[%clk 0:01:49]} 11. a3 {[%clk 0:02:31]}  a6 {[%clk 0:01:48]} 12. Rb1 {[%clk 0:02:29]}  Rb8 {[%clk 0:00:51]} 13. b4 {[%clk 0:02:28]}  cxb4 {[%clk 0:00:52]} 14. axb4 {[%clk 0:02:29]}  b5 {[%clk 0:00:53]} 15. cxb5 {[%clk 0:02:29]}  axb5 {[%clk 0:00:54]} 16. Bxb5 {[%clk 0:02:26]}  d5 {[%clk 0:00:54]} 17. exd5 {[%clk 0:02:24]}  Nxd5 {[%clk 0:00:51]} 18. Nxd5 {[%clk 0:02:22]}  exd5 {[%clk 0:00:51]} 19. Bxc6 {[%clk 0:02:21]}  Bxc6 {[%clk 0:00:52]} 20. Bd4 {[%clk 0:01:50]}  Rxb4 {[%clk 0:00:41]} 21. Rxb4 {[%clk 0:01:49]}  Bxb4 {[%clk 0:00:42]} 22. Bxg7 {[%clk 0:01:49]}  Kxg7 {[%clk 0:00:33]} 23. Qg4+ {[%clk 0:01:48]}  Kh8 {[%clk 0:00:34]} 24. Qxb4 {[%clk 0:01:49]}  d4 {[%clk 0:00:19]} 25. Nc2 {[%clk 0:01:48]}  Ba8 {[%clk 0:00:10]} 26. Nxd4 {[%clk 0:01:09]}  Rg8 {[%clk 0:00:10]} 27. f3 {[%clk 0:01:06]}  Qg5 {[%clk 0:00:10]} 28. Qb2 {[%clk 0:01:06]}  Qg7 {[%clk 0:00:06]} 29. Rb1 {[%clk 0:00:52]}  Rd8 {[%clk 0:00:02]} 30. Nf5 {[%clk 0:00:50]}  Qxb2 {[%clk 0:00:02]} 31. Rxb2 {[%clk 0:00:51]}  h5 {[%clk 0:00:01]} 32. d4 {[%clk 0:00:48]}  Kh7 {[%clk 0:00:02]} 33. Rd2 {[%clk 0:00:48]}  Kg6 {[%clk 0:00:03]} 34. Ne3 {[%clk 0:00:48]}  f5 {[%clk 0:00:03]} 35. Kf2 {[%clk 0:00:46]}  f4 {[%clk 0:00:03]} 36. Nc4 {[%clk 0:00:46]}  Bd5 {[%clk 0:00:03]} 37. Ne5+ {[%clk 0:00:46]}  Kf5 {[%clk 0:00:03]} 38. Nd3 {[%clk 0:00:46]}  Ra8 {[%clk 0:00:03]} 39. Re2 {[%clk 0:00:45]}  Bc4 {[%clk 0:00:03]} 40. Re5+ {[%clk 0:00:45]}  Kf6 {[%clk 0:00:03]} 41. Nxf4 {[%clk 0:00:46]}  Ra2+ {[%clk 0:00:03]} 42. Kg3 {[%clk 0:00:46]}  h4+ {[%clk 0:00:03]} 43. Kxh4 {[%clk 0:00:46]} 1-0


[Site "https://www.chess.com"]